bitfinex/quotes_SOLUSD_20250809
["timestamp","ask_amount","ask_price","bid_price","bid_amount"]
[1754773803486,3.6138135,183.11,183.01,15.10621557]
[1754773803650,0.71,183.05,183.04,26.0]
[1754773803859,0.71,183.05,183.04,29.97199858]
[1754773804779,0.71,183.05,183.04,35.61254596]
[1754773805658,0.71,183.05,183.04,56.18204824]
[1754773805862,0.71,183.05,183.04,50.71876153]
[1754773806876,78.32,183.14,183.05,15.10621557]
[1754773806877,0.71,183.08,183.05,15.10621557]
[1754773807070,11.10144733,183.12,183.07,5.64054738]
[1754773807268,5.64054738,183.11,183.06,5.64054738]
[1754773807469,5.64054738,183.11,183.07,3.95729136]
[1754773807782,0.71,183.1,183.06,5.64054738]
[1754773807980,0.71,183.1,183.07,3.9575706]
[1754773807981,6.17160752,183.1,183.07,3.9575706]
[1754773808167,0.71,183.09,183.06,5.64054738]
[1754773808483,0.71,183.09,183.07,3.95622976]
[1754773808648,0.71,183.09,183.06,5.64054738]
[1754773808848,0.71,183.09,183.07,3.95622976]
[1754773809052,0.71,183.09,183.06,5.64054738]
[1754773809372,0.74,183.09,183.07,3.95609487]
[1754773809578,6.20187543,183.09,183.04,41.10621557]
[1754773809779,0.71,183.08,183.05,24.72207279]
[1754773809961,0.71,183.08,183.06,3.97530984]
[1754773810279,0.71,183.08,183.07,3.97530984]
[1754773810889,6.17209307,183.08,183.07,3.97530984]
[1754773811379,11.81264045,183.08,183.03,26.0]
[1754773811587,5.64054738,183.05,183.04,29.98494584]
[1754773811792,0.71,183.05,183.04,29.98494584]
[1754773815381,6.17298825,183.05,183.04,29.98494584]
[1754773815697,11.81353563,183.05,183.04,3.98494584]
[1754773816264,0.71,183.05,183.04,3.98494584]
[1754773817574,6.17298825,183.05,183.04,3.98494584]
[1754773821795,0.71,183.05,183.04,3.98494584]
[1754773822193,5.46275826,183.06,183.04,3.98494584]
[1754773822495,6.17275826,183.06,183.05,3.98271492]
[1754773823182,6.17275826,183.06,183.02,21.43676295]
[1754773823381,11.81330564,183.06,183.03,3.98297241]
[1754773823586,11.81330564,183.06,183.04,3.98297241]
[1754773823782,6.17275826,183.06,183.05,3.98297241]
[1754773824371,5.46275826,183.06,183.05,3.98297241]
[1754773825083,6.17275826,183.06,183.05,3.98297241]
[1754773827190,4.32079774,183.07,183.05,3.98297241]
[1754773827405,5.49179474,183.09,183.02,15.10621557]
[1754773827601,0.71,183.08,183.05,0.69]
[1754773827806,0.71,183.08,183.06,3.98052648]
[1754773828005,4.32079774,183.08,183.05,0.69]
[1754773828170,0.03,183.09,183.07,3.61079774]
[1754773828392,0.03,183.09,183.08,8.27972488]
[1754773829603,0.03,183.09,183.08,23.35594045]
[1754773830112,0.03,183.09,183.08,23.35344408]
[1754773830307,0.03,183.09,183.08,19.74264634]
[1754773830514,0.03,183.09,183.08,23.35344408]
[1754773830708,0.03,183.09,183.08,19.74264634]
[1754773830921,0.03,183.13,183.12,15.10621557]
[1754773831133,73.22,183.23,183.17,15.10621557]
[1754773831422,73.22,183.23,183.16,26.0]
[1754773831423,78.67765225,183.23,183.21,5.63762536]
[1754773831902,79.38765225,183.23,183.21,5.63762536]
[1754773832229,79.38765225,183.23,183.19,15.76621557]
[1754773832418,79.38765225,183.23,183.21,5.63762536]
[1754773833312,79.38765225,183.23,183.19,15.76621557]
[1754773833313,73.93,183.23,183.19,15.76621557]
[1754773833621,73.93,183.23,183.2,6.29762536]
[1754773833622,79.38766472,183.23,183.2,6.29762536]
[1754773833821,79.38766472,183.23,183.2,0.66]
[1754773834012,79.38766472,183.23,183.21,5.63762536]
[1754773834217,73.22,183.23,183.22,5.63762536]
[1754773834393,73.22,183.23,183.22,6.29762536]
[1754773834593,73.22,183.23,183.21,15.10621557]
[1754773834825,73.22,183.23,183.21,21.40384093]
[1754773836020,73.22,183.23,183.21,15.76621557]
[1754773836216,73.22,183.23,183.21,21.40384093]
[1754773836523,73.22,183.23,183.21,15.76621557]
[1754773836711,73.22,183.23,183.22,21.40384093]
[1754773837923,0.71,183.33,183.26,41.10621557]
[1754773838216,22.54123019,183.35,183.32,5.63762536]
[1754773838521,0.71,183.34,183.32,5.63762536]
[1754773839226,20.56055919,183.35,183.33,5.63762536]
[1754773839227,15.106216,183.35,183.33,5.63762536]
[1754773839421,53.986216,183.35,183.33,5.63762536]
[1754773839723,59.44031918,183.35,183.3,15.10621557]
[1754773839931,6.34762536,183.34,183.3,15.10621557]
[1754773840123,0.71,183.33,183.3,15.10621557]
[1754773840627,6.16479335,183.33,183.3,15.10621557]
[1754773840825,0.71,183.33,183.3,15.10621557]
[1754773840994,65.78791835,183.35,183.31,5.63762536]
[1754773841194,54.696215,183.35,183.33,5.63762536]
[1754773841427,53.986215,183.35,183.33,5.63762536]
[1754773841624,38.88,183.35,183.33,5.63762536]
[1754773842125,38.86,183.35,183.33,0.66]
[1754773842325,38.86,183.35,183.33,6.29762536]
[1754773842829,39.57,183.35,183.32,41.10621557]
[1754773843008,39.57,183.35,183.32,46.74384093]
[1754773843208,38.86,183.35,183.32,41.76621557]
[1754773843406,16.372417,183.39,183.33,0.66]
[1754773843610,39.57,183.38,183.34,5.63762536]
[1754773843822,0.71,183.37,183.33,0.66]
[1754773843999,0.71,183.37,183.33,5.63762536]
[1754773844206,0.71,183.37,183.34,0.66]
[1754773844518,38.86,183.38,183.35,5.63762536]
[1754773844721,38.86,183.38,183.35,6.29762536]
[1754773845310,38.86,183.38,183.36,5.63762536]
[1754773845508,38.86,183.38,183.35,0.66]
[1754773846317,38.84,183.39,183.36,6.29762536]
[1754773846518,38.84,183.39,183.36,0.66]
[1754773846931,38.84,183.39,183.36,6.29762536]
[1754773847226,38.84,183.39,183.36,0.66]
[1754773847806,39.55,183.39,183.36,0.66]
[1754773849539,38.84,183.39,183.37,0.66]
[1754773849911,38.84,183.39,183.36,5.63762536]
[1754773850113,38.84,183.39,183.36,6.29762536]
[1754773850419,38.84,183.39,183.36,0.66]
[1754773850621,38.84,183.39,183.36,6.29762536]
[1754773850829,0.71,183.41,183.37,0.66]
[1754773851031,39.79,183.4,183.35,15.10621557]
[1754773851218,0.71,183.39,183.35,15.10621557]
[1754773851535,5.63762536,183.36,183.3,15.10621557]
[1754773851733,0.74,183.39,183.35,5.63762536]
[1754773851938,39.44,183.38,183.35,31.63762536]
[1754773852142,39.44,183.38,183.35,32.29762536]
[1754773852310,39.44,183.38,183.35,26.66]
[1754773852510,40.15,183.38,183.35,26.0]
[1754773852733,40.15,183.38,183.35,32.29762536]
[1754773853029,40.15,183.38,183.35,26.66]
[1754773853236,40.15,183.38,183.35,26.0]
[1754773853429,40.15,183.38,183.35,31.63762536]
[1754773853631,40.15,183.38,183.35,26.0]
[1754773854215,45.78762536,183.38,183.35,26.0]
[1754773854934,0.71,183.37,183.35,26.0]
[1754773855735,39.52,183.37,183.35,32.29762536]
[1754773855906,39.52,183.37,183.35,26.66]
[1754773856107,39.52,183.37,183.35,26.0]
[1754773857930,40.23,183.37,183.35,26.0]
[1754773858238,11.98525072,183.36,183.25,0.66]
[1754773858447,0.71,183.35,183.26,3.95745707]
[1754773858647,5.63762536,183.31,183.28,26.0]
[1754773858854,39.5,183.3,183.27,15.10621557]
[1754773859037,39.5,183.3,183.28,4.61813105]
[1754773859347,39.5,183.3,183.26,20.74384093]
[1754773859348,39.5,183.3,183.27,15.10621557]
[1754773859527,5.63762536,183.28,183.24,15.10621557]
[1754773859730,39.5,183.27,183.25,3.96061441]
[1754773860239,39.5,183.27,183.26,6.31762536]
[1754773860429,39.5,183.27,183.26,10.27823977]
[1754773861250,39.5,183.27,183.26,3.96061441]
[1754773861827,39.5,183.27,183.25,9.59823977]
[1754773862038,39.5,183.27,183.26,3.96061441]
[1754773862355,39.5,183.27,183.26,21.42384093]
[1754773862558,6.16428856,183.35,183.29,15.10621557]
[1754773862769,39.52,183.34,183.33,5.63762536]
[1754773863221,39.52,183.34,183.32,5.63762536]
[1754773863929,0.71,183.35,183.33,5.63762536]
[1754773864132,0.71,183.35,183.29,15.78621557]
[1754773864133,0.71,183.34,183.29,15.78621557]
[1754773864327,5.63762536,183.33,183.3,3.96506185]
[1754773864573,5.63762536,183.31,183.23,2.8847654]
[1754773864743,40.21,183.32,183.23,2.8847654]
[1754773864744,5.63762536,183.25,183.24,3.97137551]
[1754773864930,39.5,183.25,183.24,3.97137551]
[1754773865541,39.5,183.25,183.24,30.17254016]
[1754773865848,0.71,183.31,183.25,15.10621557]
[1754773866048,39.48,183.3,183.28,5.63762536]
[1754773866555,39.48,183.3,183.29,9.61332852]
[1754773867967,39.48,183.31,183.29,9.61332852]
[1754773868169,39.48,183.31,183.3,3.98347059]
[1754773868756,6.16467164,183.33,183.3,3.98347059]
[1754773868968,39.44,183.32,183.29,9.16773281]
[1754773869160,40.15,183.32,183.3,3.98427134]
[1754773869361,40.15,183.32,183.31,3.98427134]
[1754773870049,40.13,183.32,183.31,3.98427134]
[1754773873261,40.13,183.32,183.31,4.00703646]
[1754773873685,40.16,183.32,183.31,4.00703646]
[1754773876074,39.45,183.32,183.31,4.00703646]
[1754773876879,40.16,183.32,183.31,4.00703646]
[1754773878553,54.78267498,183.32,183.31,4.00703646]
[1754773879465,40.16,183.32,183.31,4.00703646]
[1754773880455,45.61494217,183.32,183.31,4.00703646]
[1754773881068,54.78267498,183.32,183.31,4.00703646]
[1754773882873,45.61494217,183.32,183.23,38.73249821]
[1754773883072,9.16773281,183.28,183.24,3.77019918]
[1754773883274,39.48,183.27,183.25,3.77019918]
[1754773883583,39.48,183.27,183.26,3.77019918]
[1754773883988,48.64773281,183.27,183.26,3.77019918]
[1754773884159,54.81416321,183.27,183.26,3.77019918]
[1754773886272,54.81416321,183.27,183.23,2.8847654]
[1754773886469,0.71,183.26,183.24,3.76966358]
[1754773886686,48.70773281,183.25,183.23,2.8847654]
[1754773886884,39.58,183.24,183.23,2.8847654]
[1754773887189,39.58,183.24,183.23,6.6514222]
[1754773887497,39.58,183.24,183.23,2.8847654]
[1754773887867,40.29,183.24,183.23,2.8847654]
[1754773888265,54.91505653,183.24,183.23,2.8847654]
[1754773888492,39.58,183.24,183.23,3.5647654]
[1754773888895,39.58,183.24,183.23,2.8847654]
[1754773891495,39.6,183.24,183.23,2.8847654]
[1754773893792,5.6304121,183.25,183.23,2.8847654]
[1754773893993,39.66,183.24,183.23,2.8847654]
[1754773894690,39.66,183.24,183.23,3.5747654]
[1754773895098,39.66,183.24,183.23,2.8847654]
[1754773897787,39.66,183.24,183.23,3.5747654]
[1754773898298,39.66,183.24,183.23,8.5151775]
[1754773898500,0.71,183.3,183.23,12.96616406]
[1754773898678,56.042253,183.29,183.25,5.6304121]
[1754773898875,56.752253,183.29,183.25,0.69]
[1754773899391,56.752253,183.29,183.25,6.3204121]
[1754773899694,40.37,183.29,183.25,6.3204121]
[1754773899894,45.980412,183.29,183.26,0.69]
[1754773900101,39.66,183.29,183.27,6.3204121]
[1754773900486,6.16530005,183.31,183.27,6.3204121]
[1754773900800,43.234765,183.3,183.27,0.69]
[1754773901696,43.234765,183.3,183.27,6.3204121]
[1754773902108,2.884765,183.3,183.27,6.3204121]
[1754773902398,5.6604121,183.32,183.29,5.6304121]
[1754773902399,0.03,183.32,183.29,5.6304121]
[1754773902589,0.03,183.32,183.31,5.6304121]
[1754773902785,0.03,183.32,183.3,0.69]
[1754773903414,0.03,183.32,183.31,0.69]
[1754773903594,0.03,183.32,183.31,4.40648783]
[1754773903789,0.03,183.32,183.31,3.71648783]
[1754773904390,6.3704121,183.32,183.26,26.69]
[1754773904595,5.6304121,183.3,183.27,3.71741226]
[1754773904782,39.64,183.29,183.28,3.71741226]
[1754773905391,45.2704121,183.29,183.28,3.71741226]
[1754773905599,51.43624711,183.29,183.23,9.2051775]
[1754773905897,51.43624711,183.29,183.24,4.40948443]
[1754773906092,51.43624711,183.29,183.24,9.34989653]
[1754773906289,51.43624711,183.29,183.25,0.69]
[1754773906495,51.43624711,183.29,183.26,3.71932968]
[1754773907011,45.9804121,183.29,183.25,0.69]
[1754773908110,45.9804121,183.29,183.26,3.71896576]
[1754773908289,45.9804121,183.29,183.27,3.71952934]
[1754773908483,45.9804121,183.29,183.25,0.69]
[1754773908682,45.9804121,183.29,183.26,3.7195328]
[1754773908885,40.35,183.29,183.27,3.7195328]
[1754773909192,40.35,183.29,183.25,6.3204121]
[1754773909388,40.35,183.29,183.26,3.71979541]
[1754773909589,0.71,183.28,183.27,3.71979541]
[1754773909814,0.71,183.28,183.26,3.71979541]
[1754773909988,39.6,183.27,183.24,0.69]
[1754773910320,39.6,183.27,183.25,3.72041498]
[1754773910490,39.6,183.27,183.26,3.72041498]
[1754773912908,6.340412,183.29,183.26,3.72041498]
[1754773913111,39.58,183.28,183.27,3.72098089]
[1754773914297,39.58,183.28,183.27,4.41098089]
[1754773914496,39.58,183.28,183.27,3.72098089]
[1754773916609,40.29,183.28,183.27,3.72098089]
[1754773917313,39.58,183.28,183.26,3.72098089]
[1754773917508,39.58,183.28,183.27,3.72098089]
[1754773917723,39.58,183.28,183.27,10.04139299]
[1754773917890,39.56,183.28,183.27,15.49768338]
[1754773918095,39.56,183.28,183.27,10.04139299]
[1754773920707,39.56,183.28,183.27,15.49782339]
[1754773921695,39.56,183.28,183.27,10.04139299]
[1754773922406,0.71,183.31,183.27,10.04139299]
[1754773922616,39.54,183.29,183.28,3.72098089]
[1754773924321,0.03,183.32,183.31,41.10621557]
[1754773924509,0.03,183.32,183.31,51.17760856]
[1754773926017,0.03,183.32,183.31,45.54719646]
[1754773926221,0.03,183.32,183.31,56.63284831]
[1754773930614,0.03,183.32,183.31,56.94682656]
[1754773932419,0.03,183.33,183.32,15.10621557]
[1754773932626,0.03,183.33,183.32,31.12199891]
[1754773933823,0.03,183.33,183.32,36.57694108]
[1754773937643,0.03,183.33,183.32,19.14117471]
[1754773937808,52.3108242,183.33,183.32,4.03495914]
[1754773938008,52.3108242,183.33,183.24,2.183347]
[1754773938313,0.63,183.32,183.25,4.03744891]
[1754773938505,5.6304121,183.3,183.26,4.03744891]
[1754773938837,5.6604121,183.33,183.27,4.03744891]
[1754773939133,6.11467395,183.33,183.3,5.6304121]
[1754773939326,0.66,183.33,183.3,5.6304121]
[1754773939730,6.11469725,183.33,183.3,5.6304121]
[1754773939935,0.63,183.32,183.29,26.0]
[1754773940235,5.6304121,183.3,183.21,21.51662767]
[1754773940414,0.63,183.29,183.24,3.91325147]
[1754773940755,5.6304121,183.27,183.25,3.91325147]
[1754773940919,5.45613269,183.28,183.22,5.6304121]
[1754773941236,0.63,183.26,183.24,3.91280207]
[1754773941418,11.08654479,183.28,183.25,3.91280207]
[1754773941626,11.716127,183.3,183.26,3.91280207]
[1754773941940,11.716127,183.3,183.27,3.91314431]
[1754773942115,0.63,183.29,183.24,6.3504121]
[1754773942442,0.63,183.31,183.28,5.6304121]
[1754773942636,6.11465362,183.33,183.29,9.54273099]
[1754773942812,0.63,183.32,183.29,5.6304121]
[1754773943927,0.03,183.33,183.3,9.54318463]
[1754773944130,0.03,183.33,183.3,5.6304121]
[1754773944418,6.11469878,183.33,183.3,5.6304121]
[1754773944820,0.63,183.32,183.27,0.72]
[1754773945043,0.63,183.32,183.29,5.6304121]
[1754773945231,0.63,183.32,183.3,3.91234309]
[1754773945413,0.63,183.32,183.29,5.6304121]
[1754773945609,0.63,183.32,183.3,3.9124284]
[1754773945839,0.63,183.32,183.29,5.6304121]
[1754773946041,5.48469878,183.33,183.3,3.91261847]
[1754773946252,5.48469878,183.33,183.29,5.6304121]
[1754773946419,6.11469878,183.33,183.3,9.54320804]
[1754773946618,6.11469878,183.33,183.3,5.6304121]
[1754773946818,6.11469878,183.33,183.28,26.0]
[1754773947158,6.11469878,183.33,183.3,5.6304121]
[1754773947327,6.11469878,183.33,183.31,3.91276389]
[1754773947534,0.66,183.33,183.3,5.6304121]
[1754773947732,6.11465686,183.33,183.28,26.72]
[1754773947934,6.11465686,183.33,183.3,5.6304121]
[1754773948253,6.11465686,183.33,183.28,26.72]
[1754773948547,6.11465686,183.33,183.3,5.6304121]
[1754773949044,6.11465686,183.33,183.31,3.91333917]
[1754773949244,6.11465686,183.33,183.3,5.6304121]
[1754773950133,5.48465686,183.33,183.3,5.6304121]
[1754773950945,5.48465686,183.33,183.31,3.91395366]
[1754773951145,5.48465686,183.33,183.3,5.6304121]
[1754773951644,5.48465686,183.33,183.28,26.72]
[1754773951940,5.48465686,183.33,183.3,5.6304121]
[1754773952166,5.48465686,183.33,183.31,3.91434665]
[1754773952446,5.48465686,183.33,183.3,5.6304121]
[1754773953042,5.6304121,183.31,183.26,0.06]
[1754773953218,40.18,183.3,183.27,9.54728637]
[1754773953418,40.18,183.3,183.28,3.91687427]
[1754773953619,40.18,183.3,183.27,5.6304121]
[1754773953840,40.18,183.3,183.28,3.91555746]
[1754773954053,40.18,183.3,183.26,0.06]
[1754773954221,0.63,183.29,183.27,3.91567665]
[1754773954415,0.63,183.29,183.28,3.91567665]
[1754773955251,6.08592055,183.29,183.26,0.06]
[1754773955454,6.08592055,183.29,183.27,3.91489647]
[1754773955622,6.08592055,183.29,183.28,3.91520741]
[1754773955824,6.08592055,183.29,183.26,0.06]
[1754773956023,0.63,183.28,183.26,0.06]
[1754773956331,0.63,183.28,183.27,3.91668502]
[1754773956528,0.63,183.28,183.26,0.06]
[1754773957457,6.08619928,183.28,183.26,0.06]
[1754773957824,6.2604121,183.27,183.26,0.06]
[1754773958419,0.63,183.27,183.26,0.06]
[1754773958626,6.2604121,183.27,183.26,0.06]
[1754773959564,11.7168425,183.27,183.26,0.06]
[1754773962473,14.6016075,183.27,183.26,0.06]
[1754773962850,8.9711954,183.27,183.26,0.06]
[1754773963042,14.6016075,183.27,183.26,0.06]
[1754773967583,54.4816075,183.27,183.26,0.06]
[1754773967878,48.2211954,183.27,183.26,0.06]
[1754773968164,53.8516075,183.27,183.26,0.06]
[1754773968974,48.2211954,183.27,183.26,0.06]
[1754773969169,53.8516075,183.27,183.26,0.06]
[1754773973871,48.2211954,183.27,183.26,0.06]
[1754773974169,53.8516075,183.27,183.26,0.06]
[1754773975361,48.2211954,183.27,183.26,0.06]
[1754773975562,53.8516075,183.27,183.26,0.06]
[1754773977977,53.8516075,183.27,183.26,0.76]
[1754773978354,48.2211954,183.27,183.26,0.76]
[1754773978586,50.9268425,183.27,183.26,0.76]
[1754773979093,45.2964304,183.27,183.26,0.76]
[1754773981919,2.884765,183.28,183.26,0.76]
[1754773982227,39.78,183.27,183.26,0.76]
[1754773982412,39.78,183.27,183.26,6.3904121]
[1754773982699,39.78,183.27,183.26,0.76]
[1754773982904,45.4104121,183.27,183.26,0.06]
[1754773983106,46.0404121,183.27,183.26,0.06]
[1754773984098,51.4968425,183.27,183.26,0.06]
[1754773985621,5.6304121,183.26,183.25,0.06]
[1754773985782,6.2604121,183.26,183.25,0.06]
[1754773986594,26.0,183.24,183.23,2.8847654]
[1754773986810,71.9804121,183.24,183.23,2.8847654]
[1754773988100,77.43773582,183.24,183.23,2.8847654]
[1754773988803,80.32250182,183.24,183.23,2.8847654]
[1754773989813,79.69250182,183.24,183.23,2.8847654]
[1754773992221,79.69250182,183.24,183.23,3.5547654]
[1754773992789,79.69250182,183.24,183.23,2.8847654]
[1754773993701,74.06208972,183.24,183.23,2.8847654]
[1754773993893,39.97250182,183.24,183.23,2.8847654]
[1754773994087,79.61250182,183.24,183.23,2.8847654]
[1754773999518,79.61250182,183.24,183.23,1e-08]
[1754773999705,80.24250182,183.24,183.23,1e-08]
[1754773999890,15.10621557,183.23,183.21,1e-08]
[1754774000220,45.2104121,183.22,183.21,1e-08]
[1754774000417,45.3104121,183.22,183.21,1e-08]
[1754774000916,45.3104121,183.22,183.2,1e-08]
[1754774001118,31.6304121,183.21,183.2,1e-08]
[1754774001299,71.3104121,183.21,183.2,1e-08]
[1754774001499,76.76862944,183.21,183.2,1e-08]
[1754774002523,76.76862944,183.21,183.19,1e-08]
[1754774002726,11.08892738,183.2,183.19,1e-08]
[1754774003520,26.0,183.17,183.11,0.67]
[1754774003708,67.23400756,183.2,183.11,0.67]
[1754774003709,5.6304121,183.12,183.11,0.67]
[1754774004028,45.2704121,183.12,183.11,0.67]
[1754774004190,47.4568611,183.12,183.11,0.67]
[1754774004395,41.826449,183.12,183.11,0.67]
[1754774004821,47.28734895,183.12,183.11,0.67]
[1754774005011,52.91776105,183.12,183.11,0.67]
[1754774005206,52.91776105,183.12,183.08,0.2]
[1754774005207,26.0,183.09,183.08,0.2]
[1754774005423,71.2704121,183.09,183.08,0.2]
[1754774005992,71.2704121,183.09,183.08,0.87]
[1754774006222,71.10179474,183.09,183.08,0.87]
[1754774006397,76.73220684,183.09,183.08,0.87]
[1754774006598,71.10179474,183.09,183.08,0.87]
[1754774007510,76.73220684,183.09,183.08,0.87]
[1754774007707,71.10179474,183.09,183.08,0.87]
[1754774008494,76.73220684,183.09,183.08,0.87]
[1754774009329,76.73220684,183.09,183.08,0.2]
[1754774009827,76.92220684,183.09,183.08,0.2]
[1754774011420,76.73220684,183.09,183.08,0.2]
[1754774012124,76.95220684,183.09,183.08,0.2]
[1754774012934,71.32179474,183.09,183.08,0.2]
[1754774013132,76.95220684,183.09,183.08,0.2]
[1754774013508,76.95220684,183.09,183.08,0.88]
[1754774013901,71.32179474,183.09,183.08,0.88]
[1754774014315,26.0,183.09,183.08,6.5104121]
[1754774014519,26.0,183.09,183.08,0.88]
[1754774014703,65.9,183.09,183.08,0.88]
[1754774014903,71.36179474,183.09,183.08,0.88]
[1754774015638,45.36179474,183.09,183.08,6.5104121]
[1754774016960,39.88,183.09,183.08,6.5104121]
[1754774018462,39.88,183.09,183.08,0.88]
[1754774019450,39.84,183.09,183.08,0.88]
[1754774019771,39.84,183.09,183.08,6.5104121]
[1754774020764,39.84,183.09,183.08,0.88]
[1754774021328,45.30179474,183.09,183.08,0.2]
[1754774021537,51.56220684,183.09,183.08,0.2]
[1754774021857,48.11896174,183.09,183.08,0.2]
[1754774022062,53.74937384,183.09,183.08,0.2]
[1754774023524,53.11937384,183.09,183.08,0.2]
[1754774023943,0.18531477,183.15,183.08,6.5104121]
[1754774024146,5.46030359,183.14,183.11,5.6304121]
[1754774024446,41.946449,183.13,183.11,0.68]
[1754774025026,5.46089995,183.12,183.11,0.68]
[1754774025224,5.46089995,183.12,183.09,0.68]
[1754774025445,39.74,183.11,183.1,0.68]
[1754774027056,45.20119818,183.11,183.1,0.68]
[1754774029231,50.83161028,183.11,183.08,0.2]
[1754774029638,56.52202228,183.11,183.08,0.2]
[1754774030143,56.52202228,183.11,183.08,0.88]
[1754774031642,50.89161018,183.11,183.08,0.88]
[1754774032862,56.52202228,183.11,183.08,0.88]
[1754774033049,50.89161018,183.11,183.08,0.88]
[1754774033242,56.52202228,183.11,183.08,0.88]
[1754774033740,31.6304121,183.09,183.08,0.2]
[1754774034044,71.2504121,183.09,183.08,0.2]
[1754774034231,76.71220684,183.09,183.08,0.2]
[1754774034432,78.89913384,183.09,183.08,0.2]
[1754774034633,79.52913384,183.09,183.08,0.2]
[1754774034853,73.89872174,183.09,183.08,0.2]
[1754774035058,79.52913384,183.09,183.08,0.2]
[1754774035651,78.89913384,183.09,183.08,0.2]
[1754774035955,73.26872174,183.09,183.08,0.2]
[1754774036162,78.89913384,183.09,183.08,0.2]
[1754774037733,73.26872174,183.09,183.08,0.2]
[1754774037935,78.89913384,183.09,183.08,0.2]
[1754774040241,79.52913384,183.09,183.08,0.2]
[1754774040639,78.89913384,183.09,183.08,0.2]
[1754774041241,39.27913384,183.09,183.08,0.2]
[1754774041446,78.97913384,183.09,183.08,0.2]
[1754774041659,33.64872174,183.09,183.08,0.2]
[1754774041957,78.97913384,183.09,183.08,0.2]
[1754774042358,78.95913384,183.09,183.08,0.2]
[1754774045235,73.32872174,183.09,183.08,0.2]
[1754774045433,78.95913384,183.09,183.08,0.2]
[1754774049144,78.95913384,183.09,183.08,0.86]
[1754774049145,33.64872174,183.09,183.08,0.86]
[1754774049363,73.30872174,183.09,183.08,0.2]
[1754774049661,78.93913384,183.09,183.08,0.2]
[1754774050257,78.93913384,183.09,183.08,1e-08]
[1754774050650,73.30872174,183.09,183.08,1e-08]
[1754774050870,78.93913384,183.09,183.08,1e-08]
[1754774051974,79.56913384,183.09,183.08,1e-08]
[1754774052167,79.56913384,183.09,183.07,1e-08]
[1754774052168,5.6304121,183.08,183.07,1e-08]
[1754774052473,6.2604121,183.08,183.07,1e-08]
[1754774052956,26.0,183.05,183.01,0.2]
[1754774053268,11.0939973,183.03,183.01,0.2]
[1754774053476,11.0939973,183.03,183.02,3.86930245]
[1754774053660,11.7239973,183.03,183.02,3.86930245]
[1754774054370,11.7239973,183.03,183.02,0.06]
[1754774054554,26.83021287,183.03,183.02,1e-08]
[1754774054760,26.83021287,183.03,183.01,1e-08]
[1754774054948,45.9604121,183.02,183.01,1e-08]
[1754774055149,51.42429582,183.02,183.01,1e-08]
[1754774056885,66.53051139,183.02,183.01,1e-08]
[1754774058875,68.71887539,183.02,183.01,1e-08]
[1754774059076,41.10621557,182.98,182.96,1e-08]
[1754774059254,66.00703977,182.97,182.96,1e-08]
[1754774059575,66.63703977,182.97,182.96,1e-08]
[1754774059872,68.82612177,182.97,182.96,1e-08]
[1754774060385,74.2914986,182.97,182.96,1e-08]
[1754774062753,68.6610865,182.97,182.96,1e-08]
[1754774063090,67.9910865,182.97,182.96,1e-08]
[1754774063275,68.6210865,182.97,182.96,1e-08]
[1754774063472,74.2514986,182.97,182.96,1e-08]
[1754774064384,26.0,182.95,182.94,1e-08]
[1754774064555,71.2304121,182.95,182.94,1e-08]
[1754774064977,71.8604121,182.95,182.94,1e-08]
[1754774066175,77.3263864,182.95,182.94,1e-08]
[1754774068054,71.6959743,182.95,182.94,1e-08]
[1754774068281,77.3263864,182.95,182.94,1e-08]
[1754774069569,79.5155874,182.95,182.94,1e-08]
[1754774070276,94.62180297,182.95,182.94,1e-08]
[1754774070983,93.99180297,182.95,182.94,1e-08]
[1754774071166,88.36139087,182.95,182.94,1e-08]
[1754774071370,93.99180297,182.95,182.94,0.68000001]
[1754774071687,93.99180297,182.95,182.94,1e-08]